{"text_format":"2","workbook":"xlsx","n_sheets":2,"sheets":["GTAS","TASCC"],"not_rendered":{"charts":0,"images":0,"macros":0,"external_links":0,"defined_names":1,"comments":0,"pivot_tables":0},"unopened":[],"bounds":{"document_bytes":16777216,"sheet_cells":100000,"run_cost":"one","rows_first":2000,"rows_last":500,"rows_between":2000,"halvings":0,"cell_chars":16384,"cell_head_chars":4096},"cells_cut":0,"cells_raw":0,"read":"whole","date_system":"1900"}

{"sheet":"GTAS","index":0,"n_rows":131,"n_cols":6,"rows_kept":131,"cut":false,"hidden":false,"merged":[]}
["List of exporters registered to export barley to China"]
["Exporters and elevators who are considered by Defra meet the relevant Chinese inspection and quarantine conditions for exporting barley to China by holding certification to the appropriate trade assurance scheme"]
["Correct at 30 June 2018"]
["To check the latest status of a registration please refer to: https://www.gafta.com/GTAS-Database"]
[]
["GTAS Number","Business Name","Address","Postcode","Country Name","Scope"]
["GTAS001","Salamon And Seaber Ltd","68 Hanbury Street\nLondon","E1 5JL","United Kingdom","GTAS Analysis and Testing"]
["GTAS003","Sciantec Analytical Services","A division of Cawood Scientific Ltd\nCoopers Bridge\nBraziers Lane\nBracknell\nBerkshire","RG42 6NS","United Kingdom","GTAS Analysis and Testing"]
["GTAS004","Robert Kerr Agriculture","Merton Croft\nWest End Lane, Merton\nBicester\nOxfordshire","OX25 2NG","United Kingdom","GTAS RED Addendum"]
["GTAS004","Robert Kerr Agriculture","Merton Croft\nWest End Lane, Merton\nBicester\nOxfordshire","OX25 2NG","United Kingdom","GTAS Trading and Merchanting"]
["GTAS006","JRL Clarke","Dunchurch Trading Estate\nLondon Road\nDunchurch\nWarwickshire","CV23 9LN","United Kingdom","GTAS RED Addendum"]
["GTAS006","JRL Clarke","69 Rugby Road\nClifton\nRugby","CV23 0DE","United Kingdom","GTAS Trading and Merchanting"]
["GTAS007","Feed Factors Ltd","The Gallery\nWhittaker Avenue\nRichmond","TW9 1EH","United Kingdom","GTAS Trading and Merchanting"]
["GTAS010","Edward Swale Ltd","Springwood Corn Mill\nHolywell Green\nHalifax\nWest Yorkshire","HX4 9BJ","United Kingdom","GTAS RED Addendum"]
["GTAS010","Edward Swale Ltd","Springwood Corn Mill\nHolywell Green\nHalifax\nWest Yorkshire","HX4 9BJ","United Kingdom","GTAS Trading and Merchanting"]
["GTAS018","Live Lab","Manton Road\nBrooke\nOakham\nLeicestershire","LE15 8DF","United Kingdom","GTAS Analysis and Testing"]
["GTAS029","S B Agriculture Ltd","The Beeches\nWimbotsham\nKings Lynn\nNorfolk","PE34 3PZ","United Kingdom","GTAS Trading and Merchanting"]
["GTAS038","Cargo Inspection Services Ltd","Icknield House\nWinston Green\nStowmarket\nSuffolk","IP14 6BQ","United Kingdom","GTAS Supervision, Sampling and Weighing"]
["GTAS041","Isle Of Wight Grain Storage","Medina Wharf\nArctic Road\nCowes\nIsle Of Wight","PO31 7PG","United Kingdom","GTAS Analysis and Testing"]
["GTAS053","W G Fry & Son","Totterdale Farm\nTisbury\nSalisbury\nWiltshire","SP3 6RS","United Kingdom","GTAS Bulk Storage and Handling"]
["GTAS058","Witney Grain Ltd","Unit 1 Roundway Hill Business Centre\nHopton Park Industrial Estate\nDevizes\nWiltshire","SN10 2LT","United Kingdom","GTAS RED Addendum"]
["GTAS058","Witney Grain Ltd","Unit 1 Roundway Hill Business Centre\nHopton Park Industrial Estate\nDevizes\nWiltshire","SN10 2LT","United Kingdom","GTAS Trading and Merchanting"]
["GTAS061","Saxon Agriculture Ltd","Acorn House\nTurbine Way\nSwaffham\nNorfolk","PE37 7XN","United Kingdom","GTAS Analysis and Testing"]
["GTAS061","Saxon Agriculture Ltd","Acorn House\nTurbine Way\nSwaffham\nNorfolk","PE37 7XN","United Kingdom","GTAS Trading and Merchanting"]
["GTAS064","Keysley Store Limited","Keysley Farm\nMonkton Deverill\nWarminster\nWiltshire","BA12 7EY","United Kingdom","GTAS Analysis and Testing"]
["GTAS064","Keysley Store Limited","Keysley Farm\nMonkton Deverill\nWarminster\nWiltshire","BA12 7EY","United Kingdom","GTAS Bulk Storage and Handling"]
["GTAS067","S J Barrick Ltd","Soff Lane\nSouthend\nGoxhill\nLincolnshire","DN19 7NA","United Kingdom","GTAS Bulk Storage and Handling"]
["GTAS073","Independent Shipping Agencies Ltd","Littlewick Farm\nSouth End\nGoxhill\nN  Lincolnshire","DN19 7LZ","United Kingdom","GTAS Supervision, Sampling and Weighing"]
["GTAS081","Mersey Docks & Harbour Ltd","Merlin Animal Feed Store\nMaritime Centre\nPort of Liverpool","L21 1LA","United Kingdom","GTAS Bulk Storage and Handling"]
["GTAS086","Groveport Logistics Ltd","Groveport\nGunness\nScunthorpe\nNorth Lincs","DN15 8UA","United Kingdom","GTAS Bulk Storage and Handling"]
["GTAS088","C, RO Ports Sutton Bridge Ltd","West Bank\nSutton Bridge\nSpalding\nLincs","PE12 9QR","United Kingdom","GTAS Analysis and Testing"]
["GTAS088","C, RO Ports Sutton Bridge Ltd","West Bank\nSutton Bridge\nSpalding\nLincs","PE12 9QR","United Kingdom","GTAS Bulk Storage and Handling"]
["GTAS093","Cattedown Wharves Ltd","Cattedown Road\nCattedown\nPlymouth\nDevon","PL4 0RP","United Kingdom","GTAS Bulk Storage and Handling"]
["GTAS095","Associated British Ports","Immingham Bulk Park\nAlexandra Road North\nImmingham Dock\nNorth Lincs","DN40 2QW","United Kingdom","GTAS Bulk Storage and Handling"]
["GTAS096","Davison & Co (Barford) Ltd","Green End Farm\nGreat Barford\nBedforshire","MK44 3HD","United Kingdom","GTAS Bulk Storage and Handling"]
["GTAS101","C.A.M Consultants","6a Northern Road\nBelfast Harbour Estate\nBelfast\nNorthern Ireland","BT3 9AL","United Kingdom","GTAS Supervision, Sampling and Weighing"]
["GTAS115","G W Topham & Son","Woodhall Farm Partnership No2 Account \nc/o North East Farm\nA428 Cambridge Road\nEltisley\nUntingdon\nCambridgeshire","PE19 6TR","United Kingdom","GTAS Analysis and Testing"]
["GTAS123","Poole Harbour Commisioners","New Harbour Road\nHamworthy\nPoole\nDorset","BH15 4AJ","United Kingdom","GTAS Bulk Storage and Handling"]
["GTAS137","Clarkson Port Services Ltd","Sentinel Terminal\nEast Bank, Cliff Quay\nIpswich","IP3 0PS","United Kingdom","GTAS Analysis and Testing"]
["GTAS137","Clarkson Port Services Ltd","Sentinel Terminal\nEast Bank, Cliff Quay\nIpswich","IP3 0PS","United Kingdom","GTAS Bulk Storage and Handling"]
["GTAS142","FF Storage Ltd","Kirmington House\nKirmington\nUlceby\nNorth Lincolnshire","DN39 6YL","United Kingdom","GTAS Analysis and Testing"]
["GTAS142","FF Storage Ltd","Dodds Wold Farm\nElsham Industrial Estate\nElsham\nNorth Lincolnshire","DN20 0SQ","United Kingdom","GTAS Bulk Storage and Handling"]
["GTAS142","FF Storage Ltd","Dodds Wold Farm\nElsham Industrial Estate\nElsham\nNorth Lincolnshire","DN20 0SQ","United Kingdom","GTAS RED Addendum"]
["GTAS144","M Jary Limited","63 Tennyson Avenue\nKings Lynn\nNorfolk","PE30 2QG","United Kingdom","GTAS Supervision, Sampling and Weighing"]
["GTAS148","Hopkins Development Limited","Steart Hill Farm\nSteart Hill\nWest Camel\nYoevil\nSomerset","BA22 7RF","United Kingdom","GTAS Analysis and Testing"]
["GTAS148","Hopkins Development Limited","Steart Hill Farm\nSteart Hill\nWest Camel\nYoevil\nSomerset","BA22 7RF","United Kingdom","GTAS Bulk Storage and Handling"]
["GTAS152","Fussell Farms / Rode Haulage","Church Farm\nParkgate Lane\nRode\nNr Frome\nSomerset","BA11 6AA","United Kingdom","GTAS Analysis and Testing"]
["GTAS152","Fussell Farms / Rode Haulage","Church Farm\nParkgate Lane\nRode\nNr Frome\nSomerset","BA11 6AA","United Kingdom","GTAS Bulk Storage and Handling"]
["GTAS161","T E Norcott & Co","Oxheys Farm\nCherry Lane\nLymm\nCheshire","WA13 0SZ","United Kingdom","GTAS Analysis and Testing"]
["GTAS161","T E Norcott & Co","Oxheys Farm\nCherry Lane\nLymm\nCheshire","WA13 0SZ","United Kingdom","GTAS Bulk Storage and Handling"]
["GTAS181","A & RL Porch","Leylands farm\nMiddlewood Green\nStowmarket\nSuffolk","IP14 5EY","United Kingdom","GTAS Bulk Storage and Handling"]
["GTAS187","Sea Spec International","Manor House\nMain Street\nBeeford\nDriffield\nEast Yorkshire","YO25 8BD","United Kingdom","GTAS Supervision, Sampling and Weighing"]
["GTAS238","MI Grains","31B Tywarnhayle Road\nPerranporth\nCornwall","TR6 0DX","United Kingdom","GTAS Trading and Merchanting"]
["GTAS258","G Horn & Sons","Bushy Down Farm\nDroxford\nSouthampton\nHampshire","SO32 3QW","United Kingdom","GTAS Bulk Storage and Handling"]
["GTAS274","Nationwide Independent Inspections","62 Rostrevor Road\nHiltown\nNewry\nCounty Down","BT34 5TZ","United Kingdom","GTAS Supervision, Sampling and Weighing"]
["GTAS285","JA Knight & Son (Farmers) Ltd","Walgrave Lodge Farm\nNewland Road\nWalgrave\nNorthants","NN6 9PZ","United Kingdom","GTAS Analysis and Testing"]
["GTAS285","JA Knight & Son (Farmers) Ltd","Walgrave Lodge Farm\nNewland Road\nWalgrave\nNorthants","NN6 9PZ","United Kingdom","GTAS Bulk Storage and Handling"]
["GTAS289","Alex Stewart Agriculture Ltd","21 Sefton Business Park\nNetherton\nLiverpool","L30 1RD","United Kingdom","GTAS Supervision, Sampling and Weighing"]
["GTAS290","New Holland Bulk Services Ltd","Old Ferry Terminal\nNew Holland\nBarrow Upon Humber\nNorth Lincolnshire","DN19 7PN","United Kingdom","GTAS Bulk Storage and Handling"]
["GTAS291","Mee Processing Ltd","Lyveden Farm\nFotheringhay Road\nNassington\nPeterborough","PE8 6QX","United Kingdom","GTAS Bulk Storage and Handling"]
["GTAS292","Mee Farmers","Lyveden Farm\nFotheringhay Road\nNassington\nPeterborough\nCambridgeshire","PE8 6QX","United Kingdom","GTAS Analysis and Testing"]
["GTAS292","Mee Farmers","Lyveden Farm\nFotheringhay Road\nNassington\nPeterborough\nCambridgeshire","PE8 6QX","United Kingdom","GTAS Bulk Storage and Handling"]
["GTAS294","Quality Cargo Inspection","Round Cottage\nCrow Lane\nTendring","CO16 9AW","United Kingdom","GTAS Supervision, Sampling and Weighing"]
["GTAS304","JHP Storage","Stirling House\nElsham Wold Industrial Estate\nBrigg\nNorth Lincs","DN20 0NX","United Kingdom","GTAS Analysis and Testing"]
["GTAS304","JHP Storage","Stirling House\nElsham Wold Industrial Estate\nBrigg\nNorth Lincs","DN20 0NX","United Kingdom","GTAS Bulk Storage and Handling"]
["GTAS304","JHP Storage","Stirling House\nElsham Wold Industrial Estate\nBrigg\nNorth Lincs","DN20 0NX","United Kingdom","GTAS RED Addendum"]
["GTAS322","John Foad & Company","30 Westbere Lane\nWestbere\nCanterbury\nKent","CT2 0HH","United Kingdom","GTAS Trading and Merchanting"]
["GTAS326","T W Bailye & Son","High Ash Grange\nMereash Lane\nHammerwich","WS7 0LG","United Kingdom","GTAS Analysis and Testing"]
["GTAS326","T W Bailye & Son","High Ash Grange\nMereash Lane\nHammerwich","WS7 0LG","United Kingdom","GTAS Bulk Storage and Handling"]
["GTAS328","D Anderson Crosby House Farm & Plant Hire","Crosby House Farm\nCrosby Maryport\nCumbria","CA15 6SS","United Kingdom","GTAS Bulk Storage and Handling"]
["GTAS329","KWS UK LTD","56 Church Street\nThirplow\nHerts","SG8 7RE","United Kingdom","GTAS Bulk Storage and Handling"]
["GTAS336","F Hobman & Sons","54 Weeland Road\nBeal\nNr Goole\nNorth Yorkshire","DN14 0SY","United Kingdom","GTAS Bulk Storage and Handling"]
["GTAS339","Rowbottom Ltd","Mount Farm\nAbbot Lane\nWoolley\nWakefield","WF4 2JJ","United Kingdom","GTAS Analysis and Testing"]
["GTAS339","Rowbottom Ltd","Mount Farm\nAbbot Lane\nWoolley\nWakefield","WF4 2JJ","United Kingdom","GTAS Bulk Storage and Handling"]
["GTAS339","Rowbottom Ltd","Mount Farm\nAbbot Lane\nWoolley\nWakefield","WF4 2JJ","United Kingdom","GTAS RED Addendum"]
["GTAS356","G & R Dawson","Mount Pleasant Farm\nCrayke\nYork","YO61 4TR","United Kingdom","GTAS Bulk Storage and Handling"]
["GTAS356","G & R Dawson","Mount Pleasant Farm\nCrayke\nYork","YO61 4TR","United Kingdom","GTAS RED Addendum"]
["GTAS361","Luke Furse Earthmoving","Venn Fox\nClawton \nHolsworthy\nDevon","EX22 6PJ","United Kingdom","GTAS Analysis and Testing"]
["GTAS361","Luke Furse Earthmoving","Venn Fox\nClawton \nHolsworthy\nDevon","EX22 6PJ","United Kingdom","GTAS Bulk Storage and Handling"]
["GTAS362","Tendring Lab Services","Round Cottage\nCrow Lane\nTendring","CO16 9AW","United Kingdom","GTAS Analysis and Testing"]
["GTAS364","H North Agriculture Ltd","Flat 3\n126 St Owens Street\nHereford","HR1 2QF","United Kingdom","GTAS Trading and Merchanting"]
["GTAS367","J P F Clay & Peter Clay Farms","Burnt House Grain Store\nBrampton Abbots \nRoss on Wye\nHerefordshire","HR9 7QW","United Kingdom","GTAS Analysis and Testing"]
["GTAS367","J P F Clay & Peter Clay Farms","The Burnt House Grain Store \nBrampton Abbots\nRoss on Wye\nHerefordshire","HR9 7QW","United Kingdom","GTAS Bulk Storage and Handling"]
["GTAS384","Seaboard Overseas Ltd","3rd Floor Rose House\n51 - 59 Circular Road\nDouglas","IM1 1AZ","Isle of Man","GTAS Trading and Merchanting"]
["GTAS387","L F Pearce & Son","Moorleys Farm\nOakley\nNr Aylesbury\nBuckinghamshire","HP18 9QQ","United Kingdom","GTAS Analysis and Testing"]
["GTAS387","L F Pearce & Son","Moorleys Farm\nOakley\nNr Aylesbury\nBuckinghamshire","HP18 9QQ","United Kingdom","GTAS Bulk Storage and Handling"]
["GTAS391","Middle Caves Ltd","Pond Dale\nGilling West\nRichmond\nNorth Yorkshire","DL10 5LB","United Kingdom","GTAS Bulk Storage and Handling"]
["GTAS394","M J & H M Timmis","Moor Farm\nBaschurch\nShrewsbury\nShropshire","SY4 2BA","United Kingdom","GTAS Analysis and Testing"]
["GTAS397","North Herts Farmers Grain Ltd","Hitchin Road\nWeston\nHitchin\nHerts","SG4 7AX","United Kingdom","GTAS RED Addendum"]
["GTAS397","North Herts Farmers Grain Ltd","Hitchin Road\nWeston\nHitchin\nHerts","SG4 7AX","United Kingdom","GTAS Trading and Merchanting"]
["GTAS400","Austwick Haulage Ltd","Clough Farm\nSwinefleet\nGoole\nEast Yorkshire","DN14 8AB","United Kingdom","GTAS Bulk Storage and Handling"]
["GTAS406","Waveney Grain 2 Seed","Ellough Heliport\nEllough\nBeccles\nSuffolk","NR34 7TE","United Kingdom","GTAS Analysis and Testing"]
["GTAS406","Waveney Grain 2 Seed","Ellough Heliport\nEllough\nBeccles\nSuffolk","NR34 7TE","United Kingdom","GTAS Bulk Storage and Handling"]
["GTAS413","C A Stevens & Sons (Transport) Ltd","Old Stockbridge Road\nGrateley\nAndover\nHants.","SP11 7EF","United Kingdom","GTAS Analysis and Testing"]
["GTAS413","C A Stevens & Sons (Transport) Ltd","Old Stockbridge Road\nGrateley\nAndover\nHants.","SP11 7EF","United Kingdom","GTAS Bulk Storage and Handling"]
["GTAS420","H Curtis & Sons","Stanton Wick Farm\nPensford\nBristol","BS39 4DB","United Kingdom","GTAS Bulk Storage and Handling"]
["GTAS422","GW Wilson & Sons","Larkstoke Farm\nAdmington\nShipston-on-Stour\nWarwickshire","CV36 4JH","United Kingdom","GTAS Analysis and Testing"]
["GTAS422","GW Wilson & Sons","Larkstoke Farm\nNr Admington\nShipston on Stour\nWarks","CV36 4JH","United Kingdom","GTAS Bulk Storage and Handling"]
["GTAS435","A & B Davies Grain Trading Ltd","The Stables\nGreenfield\nDilwyn \nHereford","HR4 8JG","United Kingdom","GTAS RED Addendum"]
["GTAS435","A & B Davies Grain Trading Ltd","The Stables\nGreenfield\nDilwyn \nHereford","HR4 8JG","United Kingdom","GTAS Trading and Merchanting"]
["GTAS450","ME Furniss & Sons (Farms)","Caynton House\nNEWPORT\nShropshire","TF10 8NE","United Kingdom","GTAS Bulk Storage and Handling"]
["GTAS456","DG White Partnership","Manor Farm\nBerwick Bassett\nSwindon\nWiltshire","SN4 9NG","United Kingdom","GTAS Bulk Storage and Handling"]
["GTAS458","John Watts Farms","Rye Farm\nWishaw\nSutton Coldfield\nWest Midlands","B76 9PY","United Kingdom","GTAS Analysis and Testing"]
["GTAS458","John Watts Farms","Rye Farm\nWishaw\nSutton Coldfield\nWest Midlands","B76 9PY","United Kingdom","GTAS Bulk Storage and Handling"]
["GTAS463","A & M Turney","Pools Barn Farm\nLittle Alne\nHenley In Arden\nWarwickshire\nB95 6JH","B95 6JH","United Kingdom","GTAS Analysis and Testing"]
["GTAS463","A & M Turney","Pools Barn Farm \nLittle Alne\nHenley In Arden \nWarwickshire","B95 6JH","United Kingdom","GTAS Bulk Storage and Handling"]
["GTAS472","Brafferton Manor Farmers","Brafferton Manor Station\nBrafferton\nHelperby\nYork\nNorth Yorkshire","YO61 2QB","United Kingdom","GTAS Bulk Storage and Handling"]
["GTAS474","Gowlett Grain Ltd","16 Mill Lane\nLinton\nCambridge","CB21 4JY","United Kingdom","GTAS Trading and Merchanting"]
["GTAS493","Samworth Farms Ltd","Samworth Farms\nStragglethorpe  Grainstore\nNottingham Road\nCropwell Bishop\nNottinghamshire","NG12 2JU","United Kingdom","GTAS Analysis and Testing"]
["GTAS505","Acorn Arable Limited","Unit 4\nHartlebury Trading Estate \nHartlebury\nKidderminster\nWorcestershire","DY10 4JB","United Kingdom","GTAS Analysis and Testing"]
["GTAS505","Acorn Arable Limited","Unit 4\nHartlebury Trading Estate \nHartlebury\nKidderminster\nWorcestershire","DY10 4JB","United Kingdom","GTAS RED Addendum"]
["GTAS505","Acorn Arable Limited","Unit 4\nHartlebury Trading Estate \nHartlebury\nKidderminster\nWorcestershire","DY10 4JB","United Kingdom","GTAS Trading and Merchanting"]
["GTAS507","Thomson Balrownie","Balrownie Farm\nBy Brechin\nAngus","DD9 7RG","United Kingdom","GTAS Bulk Storage and Handling"]
["GTAS519","Northside Grain Drying And Storage Ltd","Matfen Piers Farmhouse\nCorbridge\nNorthumberland","NE45 5PX","United Kingdom","GTAS Analysis and Testing"]
["GTAS519","Northside Grain Drying And Storage Ltd","Matfen Piers Farmhouse\nCorbridge\nNorthumberland","NE45 5PX","United Kingdom","GTAS Bulk Storage and Handling"]
["GTAS523","Gloag & Sons Ltd","Parish Crayke\nStokesley","TS9 5LB","United Kingdom","GTAS Bulk Storage and Handling"]
["GTAS537","G H Davies Holdings Limited","Boreton Farm\nCrosshouses\nShrewsbury\nShropshire","SY5 6HJ","United Kingdom","GTAS Bulk Storage and Handling"]
["GTAS557","Navis Marine Specialists Limited","177 Triumph Way - First Floor\nLiverpool","L24 9GQ","United Kingdom","GTAS Supervision, Sampling and Weighing"]
["GTAS590","J & B Gray","Pailton Pastures\nMontilo Lane\nPailton\nRugby\nWarwickshire","CV23 0QN","United Kingdom","GTAS Analysis and Testing"]
["GTAS590","J & B Gray","Pailton Pastures\nMontilo Lane\nPailton\nRugby\nWarwickshire","CV23 0QN","United Kingdom","GTAS Bulk Storage and Handling"]
["GTAS603","GEO E Gittus & Sons Ltd","Symonds Farm\nNewmarket Road\nRisby\nBury St Edmunds\nSuffolk","IP28 6RE","United Kingdom","GTAS Bulk Storage and Handling"]
["GTAS643","Melrose Farms","Easter Melrose\nGamrie\nBanff","AB45 3EQ","United Kingdom","GTAS Bulk Storage and Handling"]
["GTAS648","Walnes Limited","Moat Farm\nMoat Park\nEarl Soham\nWoodbridge\nSuffolk","IP13 7SR","United Kingdom","GTAS Bulk Storage and Handling"]
["GTAS648","Walnes Limited","Moat Farm\nMoat Park\nEarl Soham\nWoodbridge\nSuffolk","IP13 7SR","United Kingdom","GTAS Trading and Merchanting"]
["GTAS651","D A Harrison","Solway House\nSilloth Industrial Estate\nThe Airfield\nSilloth\nWIGTON","CA7 4NS","United Kingdom","GTAS Bulk Storage and Handling"]
["GTAS673","M P Hues & Sons","Lodge Farm\nPoulshot\nDevizes\nWiltshire","SN10 1RQ","United Kingdom","GTAS Bulk Storage and Handling"]
["GTAS705","K J Parrott","Meadow View Farm\nLeeds Road\nThorpe Willoughby\nSelby\nNorth Yorkshire","YO8 9PB","United Kingdom","GTAS Bulk Storage and Handling"]
["GTAS774","I T Henshaw & Sons","Court Lodge Farm\nLyminge\nKent","CT18 8DG","United Kingdom","GTAS Bulk Storage and Handling"]
["GTAS777","Warden Agri","The Grange \nPartney\nLincolnshire","PE23 4PH","United Kingdom","GTAS Trading and Merchanting"]
["GTAS787","G J Orford","Hill Farm\nFersfield\nDiss\nNorfolk","IP22 2BJ","United Kingdom","GTAS Bulk Storage and Handling"]
["GTAS794","J Bramley & Son","Home Farm\nSherburn in Elmet\nnr Leeds\nNorth Yorkshire","LS25 6AD","United Kingdom","GTAS Bulk Storage and Handling"]

{"sheet":"TASCC","index":1,"n_rows":130,"n_cols":12,"rows_kept":130,"cut":false,"hidden":false,"merged":[]}
["List of TASCC Participants to Export Barley to China"]
["TASCC participants  who are considered by Defra meet the relevant Chinese inspection and quarantine conditions for exporting barley to China by holding certification to the appropriate trade assurance scheme"]
["Correct at 12 July 2018"]
["To check the latest status of a registration please refer to: https://www.aictradeassurance.org.uk/home/"]
[]
["Scheme ID","Business Name","Address","Address line 1","Address line 2","Address line 3","Country","County","Town","Postcode","Scheme","Scope"]
["XX260","A L Cox & Sons Ltd (incorporating A L Cox & Sons)",{"$f":"CONCATENATE(D7,\", \",, E7,\", \",,F7,\", \",, G7,\", \",, H7,\", \",,I7,\",\",, J7,\",\",,)","v":"Corn Merchants, 6 High Street,, Metheringham, England, Lincolnshire, Lincoln,LN4 3EA,"},"Corn Merchants","6 High Street,","Metheringham","England","Lincolnshire","Lincoln","LN4 3EA","TASCC","The haulage of bulk combinable crops, dry feed materials, compound animal feeding stuffs and as grown herbage seeds, Storage, Merchanting"]
["XX433","A R Pearson & Son Grain Ltd",{"$f":"CONCATENATE(D8,\", \",, E8,\", \",,F8,\", \",, G8,\", \",, H8,\", \",,I8,\",\",, J8,\",\",,)","v":"Hilltop Farm, Blankney Barff, Metheringham, England, Lincolnshire, Lincoln,LN4 3BH,"},"Hilltop Farm","Blankney Barff","Metheringham","England","Lincolnshire","Lincoln","LN4 3BH","TASCC","Merchanting"]
["AD069","Adams & Howling Ltd",{"$f":"CONCATENATE(D9,\", \",, E9,\", \",,F9,\", \",, G9,\", \",, H9,\", \",,I9,\",\",, J9,\",\",,)","v":"Granary Offices, Manor House Farm, Little Plumstead, England, Norfolk, Norwich,NR13 5EL,"},"Granary Offices","Manor House Farm","Little Plumstead","England","Norfolk","Norwich","NR13 5EL","TASCC","Merchanting, Testing - Contractual"]
["YY257","ADM Direct, a division of Archer Daniels Midland Erith Ltd","Unit 1, Barton Court, 223 Barton Court, Comberton, England, Cambridgeshire, Cambridge,CB23 7BU,","Unit 1, Barton Court","223 Barton Court","Comberton","England","Cambridgeshire","Cambridge","CB23 7BU","TASCC","The haulage of bulk combinable crops, dry feed materials, compound animal feeding stuffs and as grown herbage seeds, Merchanting"]
["DA044/CJ","Agrii","Moreton Mill, Moreton, , England, Essex, Ongar,CM5 0DP,","Moreton Mill","Moreton",null,"England","Essex","Ongar","CM5 0DP","TASCC","The haulage of bulk combinable crops, dry feed materials, compound animal feeding stuffs and as grown herbage seeds, Storage, Merchanting"]
["DA044/CJ","Agrii","Sleaford Road, Bracebridge Heath, , England, Lincolnshire, Lincoln,LN4 2NW,","Sleaford Road","Bracebridge Heath",null,"England","Lincolnshire","Lincoln","LN4 2NW","TASCC","The haulage of bulk combinable crops, dry feed materials, compound animal feeding stuffs and as grown herbage seeds, Storage, Merchanting"]
["DA044/CJ","Agrii","The Seed Plant, Rosehall, , Scotland, Aberdeenshire, TURIFF,AB53 4HD,","The Seed Plant","Rosehall",null,"Scotland","Aberdeenshire","TURIFF","AB53 4HD","TASCC","Storage, Merchanting"]
["EB007","Agrovista UK Ltd t/a John Ebbage Seeds Ltd","Peacock House, 32 St Mary's Street, , England, Cambridgeshire, Ely,CB7 4ES,","Peacock House","32 St Mary's Street",null,"England","Cambridgeshire","Ely","CB7 4ES","TASCC","Merchanting"]
["HA246","Alexander Harley Seeds (Milnathort) Ltd","Thomanean, Milnathort, , Scotland, Tayside, Kinross,KY13 0RF,","Thomanean","Milnathort",null,"Scotland","Tayside","Kinross","KY13 0RF","TASCC","Merchanting"]
["XX207","Alexander Inglis & Son Ltd","Meadow Stores, Ormiston, , Scotland, East Lothian, Tranent,EH35 5NG,","Meadow Stores","Ormiston",null,"Scotland","East Lothian","Tranent","EH35 5NG","TASCC","Storage, Merchanting, Testing - Contractual, Drying"]
["XX207","Alexander Inglis & Son Ltd","Swarland Grain Dryers Ltd, Kitswell Dene, Felton, England, Northumberland, Morpeth,NE65 9NZ,","Swarland Grain Dryers Ltd","Kitswell Dene","Felton","England","Northumberland","Morpeth","NE65 9NZ","TASCC","Storage, Merchanting, Testing - Contractual, Drying"]
["YY1665","Argrain Ltd","Mill Farm, Raskelf, Easingwold, England, North Yorkshire, York,YO61 3LB,","Mill Farm","Raskelf","Easingwold","England","North Yorkshire","York","YO61 3LB","TASCC","The haulage of bulk combinable crops, dry feed materials, compound animal feeding stuffs and as grown herbage seeds, Merchanting"]
["XY081","Askew & Barrett (Pulses) Ltd","Smeeth Road, Marshland St. James, , England, Cambridgeshire, Wisbech,PE14 8JF,","Smeeth Road","Marshland St. James",null,"England","Cambridgeshire","Wisbech","PE14 8JF","TASCC","Storage, Merchanting, Testing - Contractual"]
["YY232","Aylsham Grain Ltd inc Dewing Grain","Industrial Estate, Banningham Road, , England, Norfolk, Aylsham,NR11 6LP,","Industrial Estate","Banningham Road",null,"England","Norfolk","Aylsham","NR11 6LP","TASCC","Storage, Merchanting, Testing - Contractual, Drying"]
["BA281","Bartholomews Agri Food Ltd (TASCC)","Fisherton Manor Farms, Fisherton De La Mere, Wylye, , , WARMINSTER,BA12 0PY,","Fisherton Manor Farms","Fisherton De La Mere","Wylye",null,null,"WARMINSTER","BA12 0PY","TASCC","Merchanting, Testing - Contractual"]
["BA281","Bartholomews Agri Food Ltd (TASCC)","Portfield, , , England, West Sussex, Chichester,PO19 7TT,","Portfield",null,null,"England","West Sussex","Chichester","PO19 7TT","TASCC","Merchanting, Testing - Contractual"]
["BO010","Bodle Bros Ltd","Southdown Store, Cuckfield Road, , England, West Sussex, Burgess Hill,RH15 8RE,","Southdown Store","Cuckfield Road",null,"England","West Sussex","Burgess Hill","RH15 8RE","TASCC","The haulage of bulk combinable crops, dry feed materials, compound animal feeding stuffs and as grown herbage seeds, Merchanting, Testing - Contractual"]
["YY477","Camgrain Stores Ltd, inc Camgrain (Services) Ltd & Camgrain Ltd","Cambridge APC, London Road, Balsham, England, Cambridgeshire, Cambridge,CB21 4HH,","Cambridge APC","London Road","Balsham","England","Cambridgeshire","Cambridge","CB21 4HH","TASCC","The haulage of bulk combinable crops, dry feed materials, compound animal feeding stuffs and as grown herbage seeds, The haulage of moist feed materials, Storage, Merchanting, Testing - Contractual, Drying"]
["YY477","Camgrain Stores Ltd, inc Camgrain (Services) Ltd & Camgrain Ltd","Cambridge Road, Linton, , , Cambridgeshire, CAMBRIDGE,CB21 4LN,","Cambridge Road","Linton",null,null,"Cambridgeshire","CAMBRIDGE","CB21 4LN","TASCC","Storage, Merchanting, Testing - Contractual, Drying"]
["CA028","Campbell & Penty Ltd","40 Holgate Road, , , England, North Yorkshire, York,YO24 4AB,","40 Holgate Road",null,null,"England","North Yorkshire","York","YO24 4AB","TASCC","The haulage of bulk combinable crops, dry feed materials, compound animal feeding stuffs and as grown herbage seeds, Merchanting"]
["WE001","Cefetra Ltd","Henstridge Trading Estate, , , England, Somerset, Templecombe,BA8 0TN,","Henstridge Trading Estate",null,null,"England","Somerset","Templecombe","BA8 0TN","TASCC","Storage, Merchanting, Testing - Contractual, Drying"]
["JA057","Charles Jackson & Co Ltd","White Barn, Station Road, , England, Northamptonshire, Long Buckby,NN6 7QA,","White Barn","Station Road",null,"England","Northamptonshire","Long Buckby","NN6 7QA","TASCC","The haulage of bulk combinable crops, dry feed materials, compound animal feeding stuffs and as grown herbage seeds, The haulage of bagged feed materials, Storage, Merchanting, Testing - Contractual, Drying"]
["XX857","Charles Wright & Sons Ltd","Church Road, Old Leake, , England, Lincolnshire, Boston,PE22 9NU,","Church Road","Old Leake",null,"England","Lincolnshire","Boston","PE22 9NU","TASCC","The haulage of bulk combinable crops, dry feed materials, compound animal feeding stuffs and as grown herbage seeds, Storage, Merchanting, Testing - Contractual, Drying"]
["XX385","Cherwell Valley Silos","Twyford, , , England, Oxfordshire, Banbury,OX17 3AA,","Twyford",null,null,"England","Oxfordshire","Banbury","OX17 3AA","TASCC","The haulage of bulk combinable crops, dry feed materials, compound animal feeding stuffs and as grown herbage seeds, Merchanting"]
["CH015","Chilton Grain Ltd","Chilton Airfield, Great Waldingfield, , England, Suffolk, Sudbury,CO10 0RB,","Chilton Airfield","Great Waldingfield",null,"England","Suffolk","Sudbury","CO10 0RB","TASCC","Merchanting"]
["UN021","COFCO International UK Limited","Rose HIll, Erbistock, , England, , Wrexham,LL13 0DE,","Rose HIll","Erbistock",null,"England",null,"Wrexham","LL13 0DE","TASCC","Merchanting, Testing - Contractual"]
["UN021","COFCO International UK Limited","The Havens, Ransomes Europark, , England, Suffolk, Ipswich,IP3 9SJ,","The Havens","Ransomes Europark",null,"England","Suffolk","Ipswich","IP3 9SJ","TASCC","The haulage of bulk combinable crops, dry feed materials, compound animal feeding stuffs and as grown herbage seeds, The haulage of moist feed materials, Merchanting"]
["XX369","Cotswold Agricultural Merchants","Middle Hill Farm, Saintbury, , England, Worcestershire, Broadway,WR12 7PX,","Middle Hill Farm","Saintbury",null,"England","Worcestershire","Broadway","WR12 7PX","TASCC","The brokerage of haulage, Merchanting"]
["XY984","Cozens Marketing","Karen House, Long Lane,, Flordon, England, Norfolk, Norwich,NR15 1RP,","Karen House","Long Lane,","Flordon","England","Norfolk","Norwich","NR15 1RP","TASCC","Storage, Merchanting"]
["YY438","D & D Mathie Ltd","3 Milton Court, Pittenweem, , Scotland, Fife, Anstruther,KY10 2LB,","3 Milton Court","Pittenweem",null,"Scotland","Fife","Anstruther","KY10 2LB","TASCC","Merchanting"]
["XX816","D M Carnegie","Steelstrath, , , Scotland, Grampian, Laurencekirk,AB30 1RN,","Steelstrath",null,null,"Scotland","Grampian","Laurencekirk","AB30 1RN","TASCC","The haulage of bulk combinable crops, dry feed materials, compound animal feeding stuffs and as grown herbage seeds, The haulage of moist feed materials, Storage, Merchanting, Testing - Contractual, Drying"]
["DA119/AA","Dalmark Grain Ltd","Dalmark House, Thorney Road,, Eye, England, Cambridgeshire, Peterborough,PE6 7UD,","Dalmark House","Thorney Road,","Eye","England","Cambridgeshire","Peterborough","PE6 7UD","TASCC","Storage, Merchanting, Testing - Contractual, Drying"]
["XX869","David Stennett Ltd","Culford Lodge Farm, Ingham, , England, Suffolk, Bury St. Edmunds,IP31 1PT,","Culford Lodge Farm","Ingham",null,"England","Suffolk","Bury St. Edmunds","IP31 1PT","TASCC","The haulage of bulk combinable crops, dry feed materials, compound animal feeding stuffs and as grown herbage seeds, Storage, Merchanting, Testing - Contractual, Drying"]
["XX869","David Stennett Ltd","Ingham, , , , Suffolk, BURY ST EDMUNDS,IP31 1PL,","Ingham",null,null,null,"Suffolk","BURY ST EDMUNDS","IP31 1PL","TASCC","The haulage of bulk combinable crops, dry feed materials, compound animal feeding stuffs and as grown herbage seeds, Storage, Merchanting, Testing - Contractual, Drying"]
["YY2220","Deeside Agri Services Ltd","Kilberry, , , Ireland, County Meath, NAVON,,","Kilberry",null,null,"Ireland","County Meath","NAVON",null,"TASCC","Storage, Merchanting, Testing"]
["YY2220","Deeside Agri Services Ltd","Richardstown, , , Republic of Ireland, County Louth, DUNLEER,,","Richardstown",null,null,"Republic of Ireland","County Louth","DUNLEER",null,"TASCC","Storage, Merchanting, Testing"]
["DE217","Dengie Crops Ltd","Hall Road, , Asheldham, England, Essex, Southminster,CM0 7JF,","Hall Road",null,"Asheldham","England","Essex","Southminster","CM0 7JF","TASCC","The haulage of bulk combinable crops, dry feed materials, compound animal feeding stuffs and as grown herbage seeds, Storage, Merchanting, Testing - Contractual, Drying"]
["XX889","Duncan Grain (Fochabers) Ltd","Gordon Castle Farm, Fochabers, , Scotland, Grampian, Moray,IV32 7PQ,","Gordon Castle Farm","Fochabers",null,"Scotland","Grampian","Moray","IV32 7PQ","TASCC","The haulage of bulk combinable crops, dry feed materials, compound animal feeding stuffs and as grown herbage seeds, Merchanting"]
["XX298","Dunns (Long Sutton) Ltd","Phoenix Lodge, Winters Lane, Long Sutton, England, Lincolnshire, Spalding,PE12 9BE,","Phoenix Lodge","Winters Lane","Long Sutton","England","Lincolnshire","Spalding","PE12 9BE","TASCC","Storage, Merchanting, Testing - Contractual"]
["YY1747","E E Grain Ltd","Hill Road, , Gotham, England, Notts, Nottingham,NG11 0LD,","Hill Road",null,"Gotham","England","Notts","Nottingham","NG11 0LD","TASCC","Merchanting"]
["XX411","E Felgate & Son","Kendall Lodge, Carleton Rode, , England, Norfolk, Norwich,NR16 1RH,","Kendall Lodge","Carleton Rode",null,"England","Norfolk","Norwich","NR16 1RH","TASCC","Merchanting"]
["EA104","East Coast Viners Grain (Drumlithie) Ltd","Broadwood, Drumlithie, , Scotland, Aberdeenshire, Stonehaven,AB39 3XA,","Broadwood","Drumlithie",null,"Scotland","Aberdeenshire","Stonehaven","AB39 3XA","TASCC","The haulage of bulk combinable crops, dry feed materials, compound animal feeding stuffs and as grown herbage seeds, Storage, Merchanting, Testing - Contractual, Drying"]
["EA026","East of Scotland Farmers Ltd","East Ardler, , , , Perthshire, MEIGLE,PH12 8SR,","East Ardler",null,null,null,"Perthshire","MEIGLE","PH12 8SR","TASCC","The haulage of bulk combinable crops, dry feed materials, compound animal feeding stuffs and as grown herbage seeds, Storage, Merchanting, Testing - Contractual, Drying"]
["EA026","East of Scotland Farmers Ltd","Easter Denhead, , , , Perthshire, COUPER ANGUS,PH13 9ET,","Easter Denhead",null,null,null,"Perthshire","COUPER ANGUS","PH13 9ET","TASCC","The haulage of bulk combinable crops, dry feed materials, compound animal feeding stuffs and as grown herbage seeds, Storage, Merchanting, Testing - Contractual, Drying"]
["EA026","East of Scotland Farmers Ltd","Forfar Road, , Coupar Angus, Scotland, Perthshire, Blairgowrie,PH13 9AW,","Forfar Road",null,"Coupar Angus","Scotland","Perthshire","Blairgowrie","PH13 9AW","TASCC","The haulage of bulk combinable crops, dry feed materials, compound animal feeding stuffs and as grown herbage seeds, Storage, Merchanting, Testing - Contractual, Drying"]
["YY129","Eastern Forge (Agriculture) Ltd","Stockwell Gate, Whaplode, , England, Lincs, Spalding,PE12 6UE,","Stockwell Gate","Whaplode",null,"England","Lincs","Spalding","PE12 6UE","TASCC","Merchanting"]
["YY1102","Edwalton Cereals Ltd","Granary House, Melton Road, Edwalton, England, Nottinghamshire, Nottingham,NG12 4DR,","Granary House","Melton Road","Edwalton","England","Nottinghamshire","Nottingham","NG12 4DR","TASCC","Merchanting"]
["FE123","Fengrain (Services) Ltd","Hook Lane, Wimblington, , England, Cambridgeshire, March,PE15 0QN,","Hook Lane","Wimblington",null,"England","Cambridgeshire","March","PE15 0QN","TASCC","Storage, Merchanting, Testing - Contractual, Drying"]
["FR100","Fram Farmers Ltd","Station Road, , Framlingham, England, Suffolk, Woodbridge,IP13 9EE,","Station Road",null,"Framlingham","England","Suffolk","Woodbridge","IP13 9EE","TASCC","Merchanting"]
["YY1452","Frederic Smart and Son Ltd","7 Papworth Business Park, Stirling Way, Papworth Everard, England, Cambridgeshire, Cambridge,CB23 3GY,","7 Papworth Business Park","Stirling Way","Papworth Everard","England","Cambridgeshire","Cambridge","CB23 3GY","TASCC","Storage, Merchanting"]
["YY1452","Frederic Smart and Son Ltd","Lower Heath Farm (Grain store), Therfield Road, Odsey, , Herts, BALDOCK,SG7 6SE,","Lower Heath Farm (Grain store)","Therfield Road","Odsey",null,"Herts","BALDOCK","SG7 6SE","TASCC","Storage, Merchanting"]
["BA124/AA","Frontier Agriculture Ltd","Berwick Upon Tweed, Windmill Way West, Ramparts Business park, , Northumberland, BERWICK-UPON-TWEED,TD15 1TB,","Berwick Upon Tweed","Windmill Way West","Ramparts Business park",null,"Northumberland","BERWICK-UPON-TWEED","TD15 1TB","TASCC","The haulage of bulk combinable crops, dry feed materials, compound animal feeding stuffs and as grown herbage seeds, Merchanting"]
["BA124/AA","Frontier Agriculture Ltd","Beverley Road, , Cranswick, England, East Yorkshire, Driffield,YO25 9PF,","Beverley Road",null,"Cranswick","England","East Yorkshire","Driffield","YO25 9PF","TASCC","The haulage of bulk combinable crops, dry feed materials, compound animal feeding stuffs and as grown herbage seeds, The haulage of moist feed materials, Storage, Merchanting, Testing - Contractual, Drying"]
["BA124/AA","Frontier Agriculture Ltd","Camp Road, , , England, Lincoln, Witham St Hughes,LN6 9TN,","Camp Road",null,null,"England","Lincoln","Witham St Hughes","LN6 9TN","TASCC","The haulage of bulk combinable crops, dry feed materials, compound animal feeding stuffs and as grown herbage seeds, Merchanting"]
["BA124/AA","Frontier Agriculture Ltd","Georgetown Road, A1 Trunk Road, , England, Bedfordshire, Sandy,SG19 2UB,","Georgetown Road","A1 Trunk Road",null,"England","Bedfordshire","Sandy","SG19 2UB","TASCC","The haulage of bulk combinable crops, dry feed materials, compound animal feeding stuffs and as grown herbage seeds, The haulage of moist feed materials, Storage, Merchanting, Testing - Contractual"]
["BA124/AA","Frontier Agriculture Ltd","Newmachar Store, Kingseat, , Scotland, Aberdeenshire, Newmachar,AB21 0UE,","Newmachar Store","Kingseat",null,"Scotland","Aberdeenshire","Newmachar","AB21 0UE","TASCC","Storage, Merchanting, Testing - Contractual, Drying"]
["BA124/AA","Frontier Agriculture Ltd","Sandy Lane, , , England, Norfolk, Diss,IP22 4HY,","Sandy Lane",null,null,"England","Norfolk","Diss","IP22 4HY","TASCC","The haulage of bulk combinable crops, dry feed materials, compound animal feeding stuffs and as grown herbage seeds, Storage, Merchanting, Testing - Contractual"]
["BA124/AA","Frontier Agriculture Ltd","Wells Agriculture, Granary House, Melton Road, England, Nottinghamshire, Edwalton,NG12 4DR,","Wells Agriculture","Granary House","Melton Road","England","Nottinghamshire","Edwalton","NG12 4DR","TASCC","The haulage of bulk combinable crops, dry feed materials, compound animal feeding stuffs and as grown herbage seeds, Storage, Merchanting, Testing - Contractual, Drying"]
["XX753","G & M Nisbet","Shepherds Cottage, Graden Farm, , Scotland, Borders, Kelso,TD5 8BS,","Shepherds Cottage","Graden Farm",null,"Scotland","Borders","Kelso","TD5 8BS","TASCC","The haulage of bulk combinable crops, dry feed materials, compound animal feeding stuffs and as grown herbage seeds, Merchanting"]
["MA534/GB","G B Seeds (Trading Division of Masstock UK Ltd)","Bottom Store, Thetford Road, Ingham, , Suffolk, BURY ST EDMUNDS,IP31 1NR,","Bottom Store","Thetford Road","Ingham",null,"Suffolk","BURY ST EDMUNDS","IP31 1NR","TASCC","Storage, Merchanting, Testing - Contractual"]
["MA534/GB","G B Seeds (Trading Division of Masstock UK Ltd)","Maltings Lane, Ingham, , England, Suffolk, Bury St. Edmunds,IP31 1NB,","Maltings Lane","Ingham",null,"England","Suffolk","Bury St. Edmunds","IP31 1NB","TASCC","Storage, Merchanting, Testing - Contractual"]
["YY2120","G N & MEM Morris","New Sontley Farm, Sontley Road, , Wales, Clwyd, Wrexham,LL13 0UU,","New Sontley Farm","Sontley Road",null,"Wales","Clwyd","Wrexham","LL13 0UU","TASCC","The haulage of bulk combinable crops, dry feed materials, compound animal feeding stuffs and as grown herbage seeds, Storage, Merchanting"]
["DA167","G O Davies (Westbury) Ltd","Harvest House, Westbury, , England, Shropshire, Shrewsbury,SY5 9BY,","Harvest House","Westbury",null,"England","Shropshire","Shrewsbury","SY5 9BY","TASCC","Merchanting"]
["WI001/AA","G Williams & Co (Grain) Ltd","Beaufort House, Amelia Court, Swanton Close, England, Nottinghamshire, Retford,DN22 7HJ,","Beaufort House","Amelia Court","Swanton Close","England","Nottinghamshire","Retford","DN22 7HJ","TASCC","The haulage of bulk combinable crops, dry feed materials, compound animal feeding stuffs and as grown herbage seeds, Merchanting, Testing - Contractual"]
["WI001/AA","G Williams & Co (Grain) Ltd","F Walter & Sons Ltd, Sutton Grange, Sutton cum Lound, , Notts, RETFORD,DN22 8SB,","F Walter & Sons Ltd","Sutton Grange","Sutton cum Lound",null,"Notts","RETFORD","DN22 8SB","TASCC","The haulage of bulk combinable crops, dry feed materials, compound animal feeding stuffs and as grown herbage seeds, Merchanting, Testing - Contractual"]
["YY1346","GFP Agriculture Ltd","Pegasus Road, Elsham Wold Industrial Estate, , England, , Brigg,DN20 0SQ,","Pegasus Road","Elsham Wold Industrial Estate",null,"England",null,"Brigg","DN20 0SQ","TASCC","The haulage of bulk combinable crops, dry feed materials, compound animal feeding stuffs and as grown herbage seeds, Storage, Merchanting, Testing"]
["WY062/AD","Glasson Grain Ltd (TASCC)",{"$f":"CONCATENATE(D73,\", \",, E73,\", \",,F73,\", \",, G73,\", \",, H73,\", \",,I73,\",\",, J73,\",\",,)","v":"School Lane, Glassson Dock, , , , LANCASTER,LA2 0AR,"},"School Lane","Glassson Dock",null,null,null,"LANCASTER","LA2 0AR","TASCC","The haulage of bulk combinable crops, dry feed materials, compound animal feeding stuffs and as grown herbage seeds, Storage, Merchanting, Testing - Contractual"]
["WY062/AD","Glasson Grain Ltd (TASCC)","West Quay, Glasson Dock, , England, Lancashire, Lancaster,LA2 0DB,","West Quay","Glasson Dock",null,"England","Lancashire","Lancaster","LA2 0DB","TASCC","The haulage of bulk combinable crops, dry feed materials, compound animal feeding stuffs and as grown herbage seeds, Storage, Merchanting, Testing - Contractual"]
["GL039","Gleadell Agriculture Ltd","3 Fox Oak Park, Common Road, , , , DUNNINGTON,YO19 5RZ,","3 Fox Oak Park","Common Road",null,null,null,"DUNNINGTON","YO19 5RZ","TASCC","Merchanting"]
["GL039","Gleadell Agriculture Ltd","Lindsey House, Hemswell Cliff, , England, Lincolnshire, Gainsborough,DN21 5TH,","Lindsey House","Hemswell Cliff",null,"England","Lincolnshire","Gainsborough","DN21 5TH","TASCC","Merchanting, Testing - Contractual"]
["GL039","Gleadell Agriculture Ltd","The Old Dairy, East Farm, Codford, , , WARMINSTER,BA12 0PG,","The Old Dairy","East Farm","Codford",null,null,"WARMINSTER","BA12 0PG","TASCC","Merchanting"]
["GL039","Gleadell Agriculture Ltd","Turbine Way, , , , , SWAFFHAM,PE37 7XJ,","Turbine Way",{"$nulls":4},"SWAFFHAM","PE37 7XJ","TASCC","Merchanting"]
["CE096","Glencore Agriculture UK Ltd","Warren House, Bell Lane, , England, Oxfordshire, Thame,OX9 3AL,","Warren House","Bell Lane",null,"England","Oxfordshire","Thame","OX9 3AL","TASCC","Merchanting"]
["XX254","GrainCo Ltd","Rosehall, , , Scotland, Aberdeenshire, TURRIFF,AB53 4HD,","Rosehall",null,null,"Scotland","Aberdeenshire","TURRIFF","AB53 4HD","TASCC","Merchanting"]
["XX254","GrainCo Ltd","Tynegrain Silos, Tyne Dock, , England, Tyne & Wear, South Shields,NE34 9PL,","Tynegrain Silos","Tyne Dock",null,"England","Tyne & Wear","South Shields","NE34 9PL","TASCC","The haulage of bulk combinable crops, dry feed materials, compound animal feeding stuffs and as grown herbage seeds, Storage, Merchanting, Testing - Contractual, Drying"]
["WY062/AB","Grainlink","2 The Mill, Home Farm, Stoke Rochford, , Lincolnshire, GRANTHAM,NG33 5EF,","2 The Mill","Home Farm","Stoke Rochford",null,"Lincolnshire","GRANTHAM","NG33 5EF","TASCC","Merchanting, Testing - Contractual"]
["WY062/AB","Grainlink","Astley, , , England, Shropshire, Shrewsbury,SY4 4RT,","Astley",null,null,"England","Shropshire","Shrewsbury","SY4 4RT","TASCC","Merchanting, Testing - Contractual"]
["YY1273","Grainseed Limited","Unit 3, Airfield Industrial Park, Langton Green, England, Suffolk, Eye,IP23 7HN,","Unit 3","Airfield Industrial Park","Langton Green","England","Suffolk","Eye","IP23 7HN","TASCC","Storage, Merchanting"]
["YY1465","H & E Boak & Son","East Wold Farm, Langton, , England, Yorkshire, Malton,YO17 9QQ,","East Wold Farm","Langton",null,"England","Yorkshire","Malton","YO17 9QQ","TASCC","The haulage of bulk combinable crops, dry feed materials, compound animal feeding stuffs and as grown herbage seeds, Storage, Merchanting"]
["YY1536","H Banham Ltd","4a Raynham Road, Hempton, , England, Norfolk, Fakenham,NR21 7LN,","4a Raynham Road","Hempton",null,"England","Norfolk","Fakenham","NR21 7LN","TASCC","The haulage of bulk combinable crops, dry feed materials, compound animal feeding stuffs and as grown herbage seeds, Storage, Merchanting"]
["YY1536","H Banham Ltd","Fakenham Store (Colkirk), Gormans Lane, Colkirk, , Norfolk, FAKENHAM,NR21 7NP,","Fakenham Store (Colkirk)","Gormans Lane","Colkirk",null,"Norfolk","FAKENHAM","NR21 7NP","TASCC","The haulage of bulk combinable crops, dry feed materials, compound animal feeding stuffs and as grown herbage seeds, Storage, Merchanting"]
["XX270","Harlow Agricultural Merchants Ltd","Latchmore Bank, Little Hallingbury, , England, Hertfordshire, Bishop's Stortford,CM22 7PJ,","Latchmore Bank","Little Hallingbury",null,"England","Hertfordshire","Bishop's Stortford","CM22 7PJ","TASCC","Merchanting, Testing"]
["HI001","Highland Grain Ltd","Glaikmore, North Kessock, , Scotland, Highland, Inverness,IV1 3UD,","Glaikmore","North Kessock",null,"Scotland","Highland","Inverness","IV1 3UD","TASCC","Storage, Merchanting, Testing - Contractual, Drying"]
["XX420","Humber Grain Ltd","Coleby Grange Barn, Heath Road, Coleby, , Lincolnshire, LINCOLN,LN5 0AR,","Coleby Grange Barn","Heath Road","Coleby",null,"Lincolnshire","LINCOLN","LN5 0AR","TASCC","Merchanting"]
["YY1488","Isaac Poad & Sons Ltd","Axholme, Cattal, , England, North Yorkshire, York,YO26 8DY,","Axholme","Cattal",null,"England","North Yorkshire","York","YO26 8DY","TASCC","Storage, Merchanting"]
["MO124","James Mortimer Ltd","Unit 13, Pexton Road, Kelleythorpe Industrial Estate, , England, East Yorkshire, Driffield,YO25 9DJ,","Unit 13, Pexton Road","Kelleythorpe Industrial Estate",null,"England","East Yorkshire","Driffield","YO25 9DJ","TASCC","The haulage of bulk combinable crops, dry feed materials, compound animal feeding stuffs and as grown herbage seeds, Storage, Merchanting, Testing"]
["YY1598","John A Wells Ltd","Barn Farm, Flawforth Lane, Ruddington, , , NOTTINGHAM,NG11 6NG,","Barn Farm","Flawforth Lane","Ruddington",null,null,"NOTTINGHAM","NG11 6NG","TASCC","Storage, Merchanting, Testing - Contractual"]
["YY653","John Aprahamian & Co Ltd","Walnut Farm, Church Street, Blakesley, England, Northants, Towcester,NN12 8RA,","Walnut Farm","Church Street","Blakesley","England","Northants","Towcester","NN12 8RA","TASCC","Merchanting"]
["VE019","John Vergette Ltd","Lindens Farm, Riby, , England, North East Lincolnshire, Grimsby,DN37 8NQ,","Lindens Farm","Riby",null,"England","North East Lincolnshire","Grimsby","DN37 8NQ","TASCC","The haulage of bulk combinable crops, dry feed materials, compound animal feeding stuffs and as grown herbage seeds, Storage, Merchanting, Testing - Contractual, Drying"]
["XX368","Johnson & Saunt Ltd","Southside, Albert Dock, , England, , Hull,HU1 2DS,","Southside","Albert Dock",null,"England",null,"Hull","HU1 2DS","TASCC","The haulage of bulk combinable crops, dry feed materials, compound animal feeding stuffs and as grown herbage seeds, Storage, Merchanting, Testing - Contractual, Drying"]
["XX368","Johnson & Saunt Ltd","Stockdale Farm, Daisy Hill Road, Burstwick, England, East Yorkshire, Hull,HU12 9HD,","Stockdale Farm","Daisy Hill Road","Burstwick","England","East Yorkshire","Hull","HU12 9HD","TASCC","The haulage of bulk combinable crops, dry feed materials, compound animal feeding stuffs and as grown herbage seeds, Storage, Merchanting, Testing - Contractual, Drying"]
["XX100","Mark Lawrence (Grain) Ltd","Station Maltings, , , England, Essex, Witham,CM8 2DU,","Station Maltings",null,null,"England","Essex","Witham","CM8 2DU","TASCC","Merchanting"]
["XX245","Mid England Agriculture Ltd","Hopyard Farm, Lubbesthorpe, , England, Leicestershire, Enderby,LE19 4AZ,","Hopyard Farm","Lubbesthorpe",null,"England","Leicestershire","Enderby","LE19 4AZ","TASCC","Merchanting"]
["XX495","Newtown Store Ltd","Salisbury Road, Shalbourne, , England, Wiltshire, Marlborough,SN8 3RP,","Salisbury Road","Shalbourne",null,"England","Wiltshire","Marlborough","SN8 3RP","TASCC","Storage, Merchanting, Testing - Contractual, Drying"]
["JE029","OC Jewers & Sons Ltd","New Granaries, Elmswell Road, , England, Suffolk, Woolpit,IP30 9RH,","New Granaries","Elmswell Road",null,"England","Suffolk","Woolpit","IP30 9RH","TASCC","The haulage of bulk combinable crops, dry feed materials, compound animal feeding stuffs and as grown herbage seeds, Storage, Merchanting, Testing - Contractual, Drying"]
["SO093/AM","Openfield Agriculture","Barrow Hill Barn, Barrow Hill,, Goodworth Clatford, England, Hampshire, Andover,SP11 7RG,","Barrow Hill Barn","Barrow Hill,","Goodworth Clatford","England","Hampshire","Andover","SP11 7RG","TASCC","Merchanting"]
["SO093/AM","Openfield Agriculture","Combwich Road, Cannington, , England, Somerset, Bridgwater,TA5 2PL,","Combwich Road","Cannington",null,"England","Somerset","Bridgwater","TA5 2PL","TASCC","Merchanting"]
["SO093/AM","Openfield Agriculture","Honey Pot Lane, Colsterworth, , England, Lincolnshire, Grantham,NG33 5LY,","Honey Pot Lane","Colsterworth",null,"England","Lincolnshire","Grantham","NG33 5LY","TASCC","The haulage of bulk combinable crops, dry feed materials, compound animal feeding stuffs and as grown herbage seeds, Storage, Merchanting, Testing, Testing - Contractual, Drying, Proficiency Testing"]
["YY520","Organic Arable","New Gant Farm, , , England, Cambridgeshire, Swaffham Prior,CB25 0LQ,","New Gant Farm",null,null,"England","Cambridgeshire","Swaffham Prior","CB25 0LQ","TASCC","Merchanting"]
["YY314","Paul Toseland (Grain) Ltd","69 Abbey Road, , , England, Lincolnshire, Bourne,PE10 9EN,","69 Abbey Road",null,null,"England","Lincolnshire","Bourne","PE10 9EN","TASCC","Merchanting"]
["YY074","Paul Towns Agriculture Ltd  (Incorporating Towns Agriculture Ltd)","Agriculture House, Scalford Station, , England, Leicestershire, Melton Mowbray,LE14 4UD,","Agriculture House","Scalford Station",null,"England","Leicestershire","Melton Mowbray","LE14 4UD","TASCC","Storage, Merchanting"]
["YY153","Peters Commodities Limited","2 Pine House, Southend Office Village,, Candlers Way, England, Essex, Southend on Sea,SS2 5SE,","2 Pine House","Southend Office Village,","Candlers Way","England","Essex","Southend on Sea","SS2 5SE","TASCC","Merchanting"]
["YY523","PRAG Ltd","Mountain Farm, Broadway, , Wales, Pembrokeshire, Haverfordwest,SA62 3HU,","Mountain Farm","Broadway",null,"Wales","Pembrokeshire","Haverfordwest","SA62 3HU","TASCC","Merchanting"]
["YY1068","Ringlink Scotland Ltd","Cargill Centre, Business Park, Aberdeen Park, Scotland, , Laurencekirk,AB30 1EY,","Cargill Centre","Business Park","Aberdeen Park","Scotland",null,"Laurencekirk","AB30 1EY","TASCC","Merchanting"]
["XX402","Robert Bellairs (Grain) Ltd","The Old Saddlery, Main Street, Woodnewton, England, Cambridgeshire, Peterborough,PE8 5EB,","The Old Saddlery","Main Street","Woodnewton","England","Cambridgeshire","Peterborough","PE8 5EB","TASCC","Merchanting"]
["YY1997","Robertson Crop Services ( a trading division of PRO Cam CP Ltd)","Chapel Road, Cuminestown Industrial Estate, Cuminestown, Scotland, Aberdeenshire, Turriff,AB53 5ZA,","Chapel Road","Cuminestown Industrial Estate","Cuminestown","Scotland","Aberdeenshire","Turriff","AB53 5ZA","TASCC","Merchanting"]
["AP007","Robin Appel Ltd","Church Court, Clewers Hill, , England, Hampshire, Waltham Chase,SO32 2LN,","Church Court","Clewers Hill",null,"England","Hampshire","Waltham Chase","SO32 2LN","TASCC","Merchanting, Testing"]
["YY649","Salisbury Cereals Ltd","East Farm, Codford, , , Wiltshire, WARMINSTER,BA12 0PJ,","East Farm","Codford",null,null,"Wiltshire","WARMINSTER","BA12 0PJ","TASCC","Merchanting"]
["YY1538","Saxon Agriculture Ltd","Acorn House, Turbine Way, , England, Norfolk, Swaffham,PE37 7XN,","Acorn House","Turbine Way",null,"England","Norfolk","Swaffham","PE37 7XN","TASCC","Merchanting"]
["AN14X","Scotgrain Agriculture Ltd","Elliot Industrial Estate, , , Scotland, Tayside, Arbroath,DD11 2NJ,","Elliot Industrial Estate",null,null,"Scotland","Tayside","Arbroath","DD11 2NJ","TASCC","Merchanting"]
["MC16X","Simpsons Malt Limited (including McCreath Simpson & Prentice and John Guthrie, trading divisions)","Tweed Valley Maltings, Tweedside Trading Estate, Ord Road, England, Northumberland, Berwick upon Tweed,TD15 2UZ,","Tweed Valley Maltings","Tweedside Trading Estate","Ord Road","England","Northumberland","Berwick upon Tweed","TD15 2UZ","TASCC","The haulage of bulk combinable crops, dry feed materials, compound animal feeding stuffs and as grown herbage seeds, The haulage of moist feed materials, Storage, Merchanting, Testing - Contractual"]
["XY426","Strathmore Agribusiness","The Bothy, West Grange of Conon, , Scotland, Tayside, Arbroath,DD11 3SD,","The Bothy","West Grange of Conon",null,"Scotland","Tayside","Arbroath","DD11 3SD","TASCC","Merchanting"]
["YY2230","T Denne & Sons","Whitehill Grain Store, Whitehill,, Bilting, England, Kent, Ashford,TN25 4HB,","Whitehill Grain Store","Whitehill,","Bilting","England","Kent","Ashford","TN25 4HB","TASCC","The haulage of bulk combinable crops, dry feed materials, compound animal feeding stuffs and as grown herbage seeds, Storage, Merchanting, Testing - Contractual"]
["YY1375","Thomas Bell & Sons Ltd T/A Transfert","PO Box 5, Bigby Road, , England, North Lincolnshire, Brigg,DN20 8RA,","PO Box 5","Bigby Road",null,"England","North Lincolnshire","Brigg","DN20 8RA","TASCC","Merchanting"]
["YY610","Trevor Cope Seeds/ Grain Ltd","Highgate Barns, Helpringham Road, , England, Lincolnshire, Scredington,NG34 0BW,","Highgate Barns","Helpringham Road",null,"England","Lincolnshire","Scredington","NG34 0BW","TASCC","Merchanting"]
["CH091","W A Church (Bures) Ltd","High Street, , , England, Suffolk, Bures,CO8 5JQ,","High Street",null,null,"England","Suffolk","Bures","CO8 5JQ","TASCC","Merchanting"]
["YY2281","Walnes Ltd","Moat Farm, Moat Park, Earl Soham, England, Suffolk, Woodbridge,IP13 7SR,","Moat Farm","Moat Park","Earl Soham","England","Suffolk","Woodbridge","IP13 7SR","TASCC","Storage, Merchanting"]
["WE406","Western Arable Services Ltd  Incorporating Abbey Cereals","Lassington Lane, , , , Gloucestershire, HIGNAM,GL2 8DH,","Lassington Lane",null,null,null,"Gloucestershire","HIGNAM","GL2 8DH","TASCC","Storage, Merchanting, Testing - Contractual, Drying"]
["WE406","Western Arable Services Ltd  Incorporating Abbey Cereals","The Grain Store, Cursey Lane, Elmstone Hardwicke, England, Gloucestershire, Cheltenham,GL51 9TF,","The Grain Store","Cursey Lane","Elmstone Hardwicke","England","Gloucestershire","Cheltenham","GL51 9TF","TASCC","Storage, Merchanting, Testing - Contractual, Drying"]
["XY869","Weston Mill Farming Company (incorporating J S Dakin & Co)","Weston Mill Farm, North Road, Sutton-on-Trent, England, Nottinghamshire, Newark,NG23 6TS,","Weston Mill Farm","North Road","Sutton-on-Trent","England","Nottinghamshire","Newark","NG23 6TS","TASCC","The haulage of bulk combinable crops, dry feed materials, compound animal feeding stuffs and as grown herbage seeds, Storage, Merchanting, Drying"]
["WH00X","Wherry & Sons Ltd","The Old School, High Street, Rippingale, England, Lincolnshire, Bourne,PE10 0SR,","The Old School","High Street","Rippingale","England","Lincolnshire","Bourne","PE10 0SR","TASCC","Merchanting"]
["YY462","Woldgrain Storage Ltd",", Hemswell Airfield, Hemswell Cliff, England, Lincolnshire, Gainsborough,DN21 5TJ,",null,"Hemswell Airfield","Hemswell Cliff","England","Lincolnshire","Gainsborough","DN21 5TJ","TASCC","Storage, Merchanting, Testing - Contractual, Drying"]
["YY1489","Yorkshire Grain Ltd","Knaresborough House, High Street, , , North Yorkshire, KNARESBOROUGH,HG5 0HL,","Knaresborough House","High Street",null,null,"North Yorkshire","KNARESBOROUGH","HG5 0HL","TASCC","Merchanting"]
["YY1489","Yorkshire Grain Ltd","Unit 13, Pexton Road, Kelleythorpe Ind Est, , , DRIFFIELD,YO25 9DJ,","Unit 13","Pexton Road","Kelleythorpe Ind Est",null,null,"DRIFFIELD","YO25 9DJ","TASCC","Merchanting"]